[Event "FTX Crypto Cup MCCT 2022"]
[Site "Miami"]
[Date "2022.08.11"]
[Round "2.4"]
[White "Niemann, Hans Moke"]
[Black "Carlsen, Magnus"]
[Result "0-1"]
[ECO "B08"]
[WhiteElo "2688"]
[BlackElo "2864"]
[Annotator "TA"]
[PlyCount "62"]
[EventDate "2022.08.10"]
[EventType "tourn"]
[EventCountry "USA"]
[SourceTitle "playchess.com"]
[Source "ChessBase"]
[SourceQuality "1"]
[TimeControl "900+10"]

{[%evp 11,62,26,35,26,41,42,34,36,32,39,31,-60,35,14,37,0,0,0,0,-48,-52,-47,-47,-46,-54,-68,-75,-70,-73,-77,-72,-72,-72,-91,-98,-91,-12,-12,-14,-64,-59,-141,-91,-103,-112,-386,-382,-414,-395,-427,-422,-411,-408]} 1. e4 {[%emt 0:00:00]} g6 {[%emt 0:00:00]} 2. d4 {[%emt 0:00:09]} Bg7 {[%emt 0:00:22]} 3. Nf3 {[%emt 0:00:49]} d6 {[%emt 0:00:03]} 4. Be2 {[%emt 0:00:22]} Nf6 {[%emt 0:00:03]} 5. Nc3 {[%emt 0:00:03]} O-O {[%emt 0:00:03]} 6. O-O {[%emt 0:00:01]} e6 {[%emt 0:00:44] 6...Nc6 is the modern continuation.} 7. h3 {[%emt 0:00:36] B08: Pirc Defence: Classical System.} b6 {[%emt 0:01:15]} 8. e5 {[%emt 0:00:10]} dxe5 {[%emt 0:00:06] [#]} 9. dxe5 $146 {[%emt 0:00:03] White is slightly better.} ({Predecessor:} 9. Nxe5 Bb7 10. Bf3 Qc8 11. Qe2 Nfd7 12. Bf4 Nxe5 13. Bxe5 Nd7 14. Bxg7 Kxg7 15. Rad1 Nf6 16. Bxb7 Qxb7 17. Qe5 Rfe8 18. Rfe1 c6 19. Ne4 Qe7 20. g4 h6 21. h4 {1-0 (21) Estrada Nieto,J (2280)-Klimciauskas,D (2150) Chess.com INT 2021}) 9... Qxd1 {[%emt 0:00:42]} 10. Rxd1 {[%emt 0:00:00]} ({Much weaker is} 10. Nxd1 Nfd7 $11) 10... Nfd7 {[%emt 0:00:35]} 11. Nb5 {[%emt 0:00:23]} (11. Bf4 $14) 11... Ba6 {[%emt 0:01:46]} (11... a6 $1 $15 12. Nc3 (12. Nxc7 Ra7 $17) 12... Nxe5) 12. Bf4 {[%emt 0:01:11]} Rc8 {[%emt 0:00:02]} 13. a4 {[%emt 0:03:08]} Bb7 {[%emt 0:00:02]} 14. a5 $1 {[%emt 0:01:46][%cal Oa5a6]} a6 {[%emt 0:00:06]} 15. axb6 {[%emt 0:01:04]} axb5 $15 {[%emt 0:02:00]} 16. Ra7 {[%emt 0:00:04] [#]} Nxb6 $1 {[%emt 0:02:06]} 17. Rxb7 {[%emt 0:00:04]} Nc6 $1 {[%emt 0:00:00]} 18. Bxb5 {[%emt 0:01:21]} Na5 {[%emt 0:00:02]} 19. Rxb6 {[%emt 0:00:14]} cxb6 {[%emt 0:00:00]} 20. Nd4 {[%emt 0:00:47]} Nc4 {[%emt 0:00:47]} 21. Nc6 {[%emt 0:00:03] [#]} Bf8 {[%emt 0:01:05] Prevents Ne7+.} 22. b3 {[%emt 0:00:07]} (22. Bxc4 Rxc6) 22... Na3 $36 {[%emt 0:00:19][%csl LRb5,LRc2][%mdl 2048] Black has strong initiative.} 23. c4 {[%emt 0:00:02]} Nxb5 {[%emt 0:00:00]} ({Better is} 23... Nc2 $17 {aiming for ...Ra1.} 24. Rd7 Na1) 24. cxb5 $11 {[%emt 0:00:00]} Ra3 {[%emt 0:00:16]} 25. Rd3 {[%emt 0:00:03]} ({White should try} 25. b4 $11) 25... Bc5 $15 {[%emt 0:00:53]} 26. Bg5 {[%emt 0:00:13]} (26. g4 $15) 26... Rca8 {[%emt 0:00:15]} (26... Ra1+ $142 27. Kh2 Rca8) 27. g4 $17 {[%emt 0:00:56]} Ra2 {[%emt 0:00:16]} 28. Rf3 {[%emt 0:01:03][%mdl 8192] This costs White the game.} (28. Bd2 $17) 28... Rb2 $19 {[%emt 0:00:16]} 29. Kg2 {[%emt 0:00:44]} Raa2 {[%emt 0:00:13][%cal Rc5f2]} 30. Bh4 {[%emt 0:00:05]} g5 {[%emt 0:00:02]} 31. Bg3 {[%emt 0:00:15]} Ra3 {[%emt 0:00:06] Weighted Error Value: White=0.47/Black=0.14 (very precise)} 0-1

[Event "FTX Crypto Cup MCCT 2022"]
[Site "Miami"]
[Date "2022.08.11"]
[Round "2.5"]
[White "Duda, Jan-Krzysztof"]
[Black "Aronian, Levon"]
[Result "1/2-1/2"]
[ECO "C56"]
[WhiteElo "2750"]
[BlackElo "2775"]
[Annotator "TA"]
[PlyCount "111"]
[EventDate "2022.08.10"]
[EventType "tourn"]
[EventCountry "USA"]
[SourceTitle "playchess.com"]
[Source "ChessBase"]
[SourceQuality "1"]
[TimeControl "300+3"]

{[%evp 15,111,0,0,0,0,-5,0,0,0,0,0,-28,-30,-57,-39,-52,-52,-39,0,0,0,0,0,0,0,0,8,0,3,-34,-39,-39,-47,-85,0,-9,-11,-10,-7,-10,-11,-9,-14,-11,-14,-12,-14,-27,-33,-58,-62,-91,-93,-115,-127,-127,-8,-54,0,-120,-122,-116,-117,-117,-112,-291,-277,-277,-272,-265,-247,-197,-209,-279,0,0,0,0,0,0,0,0,0,0,0,0,0,0,0,0,0,0,0,0,0,0,0,0]} 1. e4 {[%emt 0:00:00]} e5 {[%emt 0:00:00][%cal Be7e5,Be5d4][%mdl 32]} 2. Nf3 {[%emt 0:00:02]} Nc6 {[%emt 0:00:01]} 3. Bc4 {[%emt 0:00:00]} Nf6 {[%emt 0:00:01]} 4. d4 {[%emt 0:00:00]} exd4 {[%emt 0:00:10]} 5. e5 {[%emt 0:00:00]} d5 {[%emt 0:00:07]} 6. Bb5 {[%emt 0:00:02]} Nd7 {[%emt 0:00:01][%cal Bf6d7,Bd7b8,Bb8c6][%mdl 32]} 7. O-O {[%emt 0:00:06]} Be7 {[%emt 0:00:15]} 8. Bxc6 {[%emt 0:00:15]} bxc6 {[%emt 0:00:01]} 9. Nxd4 {[%emt 0:00:01] C56: Two Knights: 4 d4 exd4 5 0-0 Nxe4.} Nb8 {[%emt 0:00:01]} 10. Qf3 {[%emt 0:00:05][%cal Oc2c4]} c5 {[%emt 0:00:18]} 11. Nf5 {[%emt 0:00:20]} Bxf5 {[%emt 0:00:04]} 12. Qxf5 {[%emt 0:00:00]} Qd7 {[%emt 0:00:03] [#]} 13. Qh5 $146 {[%emt 0:00:36][%cal Oc2c4]} ({Predecessor:} 13. Qf3 Nc6 14. c4 Nxe5 15. Qxd5 Qxd5 16. cxd5 O-O-O 17. Nc3 Nd3 18. Rd1 c4 19. b3 {0-1 (46) Savchenko,B (2543)-Malaniuk,V (2526) Belorechensk 2005}) 13... Nc6 {[%emt 0:00:11]} 14. c3 {[%emt 0:00:31]} O-O {[%emt 0:00:08]} 15. Nd2 {[%emt 0:00:02][%cal Bb1d2,Bd2b3,Bb3c5,Bc5e4][%mdl 32]} f6 {[%emt 0:00:42]} 16. exf6 {[%emt 0:00:08]} Bxf6 {[%emt 0:00:04][%cal Be7f6,Bf6e5,Be5f4][%mdl 32]} 17. Nb3 {[%emt 0:00:08]} c4 {[%emt 0:00:14]} 18. Nc5 {[%emt 0:00:05]} Qf7 {[%emt 0:00:05]} 19. Qxf7+ {[%emt 0:00:32]} Rxf7 {[%emt 0:00:00]} 20. Rd1 {[%emt 0:00:24]} d4 {[%emt 0:00:02]} 21. Ne4 {[%emt 0:00:02]} Be5 {[%emt 0:00:31]} 22. f4 {[%emt 0:00:25]} Bxf4 {[%emt 0:00:06]} 23. cxd4 {[%emt 0:00:01]} Re8 {[%emt 0:00:13]} 24. Re1 {[%emt 0:00:53][%cal Oe4f6] Black must now prevent Nf6+!} Rd8 {[%emt 0:00:34]} (24... Nxd4 $2 25. Nf6+ $1 {[%mdl 512]} Rxf6 26. Rxe8+ Kf7 27. Re4 Bxc1 28. Rxc1 $18) (24... Bxc1 $1 $17 25. Raxc1 Rfe7 26. Rxc4 Nd8 27. Rxc7 (27. d5 Nf7 $17) 27... Rxe4 28. Rxe4 Rxe4) 25. Ng5 {[%emt 0:00:30]} Bxg5 {[%emt 0:00:02]} 26. Bxg5 {[%emt 0:00:00]} Rxd4 {[%emt 0:00:02]} 27. Rac1 {[%emt 0:00:07]} h6 {[%emt 0:00:28]} 28. Be3 {[%emt 0:00:14]} Re4 {[%emt 0:00:01]} 29. Bd2 {[%emt 0:00:06]} Rfe7 {[%emt 0:00:06]} 30. Rxe4 {[%emt 0:00:21]} Rxe4 $11 {[%emt 0:00:02][%mdl 4096] Endgame KRB-KRN} 31. Bc3 {[%emt 0:00:01]} Nd4 {[%emt 0:00:35]} 32. Bxd4 {[%emt 0:00:01]} Rxd4 $15 {[%emt 0:00:02] KR-KR} 33. b3 {[%emt 0:00:02]} Kf7 {[%emt 0:00:05]} 34. Kf2 {[%emt 0:00:15] [#]} Ke6 $1 {[%emt 0:00:02]} 35. Ke3 {[%emt 0:00:05]} Rg4 {[%emt 0:00:09]} (35... Kd5 $17 {Hoping for ...c5.} 36. bxc4+ Rxc4 37. Rd1+ Kc6) 36. Kf3 {[%emt 0:00:10]} (36. Rxc4 $11 {might be stronger.} Rxc4 37. bxc4) 36... Rd4 {[%emt 0:00:14]} (36... h5 $15) 37. Ke3 $1 $17 {[%emt 0:00:01]} Kd5 {[%emt 0:00:05]} 38. Rf1 {[%emt 0:00:08]} cxb3 {[%emt 0:00:22]} 39. axb3 {[%emt 0:00:10]} Rb4 {[%emt 0:00:02]} 40. Rf7 $2 {[%emt 0:00:01]} (40. Rd1+ $17 Kc5 41. Rd3) 40... Rxb3+ $19 {[%emt 0:00:01]} 41. Kf2 {[%emt 0:00:01]} Rb2+ {[%emt 0:00:04]} 42. Kf3 {[%emt 0:00:01]} Kc6 {[%emt 0:00:10] ...a5 is the strong threat.} 43. Rxg7 {[%emt 0:00:01]} a5 {[%emt 0:00:02] And now ...a4 would win.} 44. Rg6+ {[%emt 0:00:06] [#]} Kb7 $2 {[%emt 0:00:09]} ({Black should play} 44... Kb5 $1 $19 {Strongly threatening ...a4.} 45. Rxh6 a4) 45. Rxh6 $11 {[%emt 0:00:00] The position is equal.} a4 {[%emt 0:00:02]} 46. Rh4 {[%emt 0:00:02]} Rb3+ {[%emt 0:00:01]} 47. Kf2 {[%emt 0:00:03]} a3 {[%emt 0:00:01]} 48. Ra4 {[%emt 0:00:01]} Rb2+ {[%emt 0:00:18]} 49. Kf3 {[%emt 0:00:02]} a2 {[%emt 0:00:01]} 50. h4 {[%emt 0:00:05]} c5 {[%emt 0:00:08][%cal Oc5c4] aiming for ...c4!} 51. h5 {[%emt 0:00:03]} Rb3+ {[%emt 0:00:01]} 52. Kf2 {[%emt 0:00:04]} Rb2+ {[%emt 0:00:01]} 53. Kf3 {[%emt 0:00:09]} Rb3+ {[%emt 0:00:01]} 54. Kf2 {[%emt 0:00:01]} Rb2+ {[%emt 0:00:01]} 55. Kg3 {[%emt 0:00:04]} Rb3+ {[%emt 0:00:04]} 56. Kf2 {[%emt 0:00:07] Black had all chances to win.  Weighted Error Value: White=0.12 (very precise) /Black=0.16 (very precise)} 1/2-1/2

[Event "FTX Crypto Cup MCCT 2022"]
[Site "Miami"]
[Date "2022.08.11"]
[Round "2.6"]
[White "Aronian, Levon"]
[Black "Duda, Jan-Krzysztof"]
[Result "1-0"]
[ECO "A13"]
[WhiteElo "2775"]
[BlackElo "2750"]
[Annotator "TA"]
[PlyCount "145"]
[EventDate "2022.08.10"]
[EventType "tourn"]
[EventCountry "USA"]
[SourceTitle "playchess.com"]
[Source "ChessBase"]
[SourceQuality "1"]
[TimeControl "300+3"]

{[%evp 10,145,38,13,27,-17,0,0,0,-9,8,-16,21,-16,-26,-25,-27,-24,-21,-24,-35,-31,-31,-28,-10,-39,-47,-30,56,51,85,90,126,120,176,171,197,200,216,135,153,122,135,154,192,162,227,229,245,247,240,202,210,171,374,229,227,237,197,157,144,159,347,341,368,365,365,364,351,338,543,518,612,609,584,565,645,604,710,710,710,710,710,696,702,659,12829,12833,12837,12843,12838,11782,11583,11110,10632,10239,10753,9520,10058,9879,29940,9488,12850,8855,29937,12845,12831,10175,29946,29953,29946,29945,29958,9407,9381,9381,9393,9145,9603,9603,7300,6735,3038,2085,11877,12797,2172,1579,29966,29967,29964,29963,29962,29962,29965,29967,4937,4930]} 1. c4 {[%emt 0:00:00]} e6 {[%emt 0:00:00]} 2. g3 {[%emt 0:00:02]} d5 {[%emt 0:00:03]} 3. Bg2 {[%emt 0:00:00]} Nf6 {[%emt 0:00:01]} 4. Nf3 {[%emt 0:00:02]} d4 {[%emt 0:00:07]} 5. d3 {[%emt 0:00:04]} Nc6 {[%emt 0:00:02]} 6. O-O {[%emt 0:00:06]} Bc5 {[%emt 0:00:04] seems to push 6...Be7 aside. A13: English Opening: 1...e6.} 7. Bg5 $5 {[%emt 0:00:17][%mdl 4] Exploring less charted territory.} h6 {[%emt 0:00:08]} 8. Bxf6 {[%emt 0:00:01]} Qxf6 {[%emt 0:00:00] The position is equal.} 9. Nbd2 {[%emt 0:00:01]} Qd8 {[%emt 0:00:20]} 10. Ne1 {[%emt 0:00:11]} e5 {[%emt 0:00:07]} 11. Nc2 {[%emt 0:00:02][%cal Ob2b4]} (11. Bxc6+ $5 bxc6 12. Nef3 $11) 11... a5 {[%emt 0:00:02] [#]} 12. b3 $146 {[%emt 0:00:02]} ({Predecessor:} 12. Rb1 h5 13. a3 a4 14. b4 axb3 15. Nxb3 Be7 16. c5 h4 17. Nb4 Nxb4 18. axb4 {0-1 (44) Melkumyan,H (2649)-Tristan,L (2553) Chess.com INT 2022}) 12... Nb4 {[%emt 0:00:14]} 13. Ne1 {[%emt 0:00:10]} O-O {[%emt 0:00:19]} 14. a3 {[%emt 0:00:02]} Nc6 {[%emt 0:00:36]} 15. Nc2 {[%emt 0:00:01][%cal Ob3b4]} Qe7 {[%emt 0:00:01]} 16. Ne4 {[%emt 0:00:07]} Ba7 {[%emt 0:00:04]} 17. Rb1 {[%emt 0:00:01]} f5 {[%emt 0:00:02]} 18. Nd2 {[%emt 0:00:01]} e4 {[%emt 0:00:25]} (18... Nd8 $11) 19. b4 $1 $14 {[%emt 0:00:16]} (19. dxe4 fxe4 20. Bxe4 Bh3 $11) 19... Kh8 {[%emt 0:00:33]} 20. c5 {[%emt 0:00:09][%cal Rd3e4]} (20. dxe4 fxe4 21. Bxe4 Bh3 $11) 20... Be6 {[%emt 0:00:32]} 21. dxe4 {[%emt 0:00:17]} fxe4 {[%emt 0:00:06]} (21... Rad8 $16) 22. Bxe4 $18 {[%emt 0:00:19]} axb4 {[%emt 0:00:11]} 23. axb4 {[%emt 0:00:02]} Rad8 {[%emt 0:00:02]} 24. Ne1 {[%emt 0:00:03]} Bh3 {[%emt 0:00:25]} 25. Bg2 {[%emt 0:00:02]} Bxg2 {[%emt 0:00:11]} 26. Kxg2 {[%emt 0:00:35]} Rde8 {[%emt 0:00:17]} 27. Ndf3 {[%emt 0:00:08]} (27. b5 $6 Ne5 $14) 27... Qxe2 {[%emt 0:00:22]} (27... Qe4 {was called for.} 28. Qd3 Qd5) 28. Qxe2 {[%emt 0:00:00]} Rxe2 {[%emt 0:00:01]} 29. Nd3 {[%emt 0:00:01]} ({Not} 29. b5 Ne5 $16) 29... Rc2 {[%emt 0:00:46]} 30. Ra1 {[%emt 0:00:06] [#] Threatens to win with b5.} Bb8 {[%emt 0:00:11]} 31. Ra8 {[%emt 0:00:11]} b6 $2 {[%emt 0:00:15]} (31... Kh7 32. b5 Ne7) 32. Nde5 {[%emt 0:00:13]} Nxe5 {[%emt 0:00:05]} 33. Nxe5 {[%emt 0:00:00] Ng6+ is the strong threat.} Kh7 {[%emt 0:00:02] Prevents Ng6.} 34. Nc6 {[%emt 0:00:40][%csl LRb8,LRd4]} ({And not} 34. Nd7 Rd8 $11) 34... bxc5 {[%emt 0:00:03]} 35. bxc5 {[%emt 0:00:00]} Rxc5 $2 {[%emt 0:00:02] Loses the game.} (35... Rb2 $16 {was necessary.} 36. Nxd4 Rf6) 36. Rxb8 {[%emt 0:00:03]} Rxb8 {[%emt 0:00:03]} 37. Nxb8 $16 {[%emt 0:00:00][%mdl 4096] Endgame KRN-KR} Rc3 {[%emt 0:00:05]} 38. Nd7 {[%emt 0:00:16]} c5 {[%emt 0:00:03]} 39. Ne5 {[%emt 0:00:04]} d3 $2 {[%emt 0:00:04]} (39... h5 40. h4 Kg8) 40. Kf3 $18 {[%emt 0:00:14]} c4 {[%emt 0:00:02]} 41. Ke3 {[%emt 0:00:04]} Rc2 {[%emt 0:00:02]} 42. Kd4 {[%emt 0:00:02]} Re2 {[%emt 0:00:07]} 43. Nxc4 {[%emt 0:00:08]} d2 {[%emt 0:00:01]} 44. Rd1 {[%emt 0:00:03]} Rxf2 {[%emt 0:00:02]} 45. Rxd2 {[%emt 0:00:01]} Rf8 {[%emt 0:00:01]} 46. Ne5 {[%emt 0:00:02]} h5 {[%emt 0:00:04]} 47. Ke4 {[%emt 0:00:05]} h4 {[%emt 0:00:02]} 48. gxh4 {[%emt 0:00:02]} Kh6 {[%emt 0:00:01]} 49. Rg2 {[%emt 0:00:04]} Rf1 {[%emt 0:00:06]} 50. Nf3 {[%emt 0:00:05]} Ra1 {[%emt 0:00:02]} 51. Kf4 {[%emt 0:00:01]} Ra4+ {[%emt 0:00:02]} 52. Kg3 {[%emt 0:00:01]} Kh5 {[%emt 0:00:02]} 53. Kh3 {[%emt 0:00:01]} Kh6 {[%emt 0:00:04]} 54. Rg4 {[%emt 0:00:01]} Ra6 {[%emt 0:00:02]} 55. Kg3 {[%emt 0:00:01]} (55. h5 $142 Ra5 56. Rg6+ Kxh5 57. Rxg7 Kh6 58. Rd7 Kh5 59. Kg3 Rc5 60. h4) 55... Ra3 {[%emt 0:00:01]} 56. Re4 {[%emt 0:00:02]} Kh5 {[%emt 0:00:01]} 57. Re5+ {[%emt 0:00:01]} Kg6 {[%emt 0:00:02]} 58. Rd5 {[%emt 0:00:10] [#] Intending h5+ and mate.} Kh6 {[%emt 0:00:05]} 59. Kg4 {[%emt 0:00:01]} Ra4+ {[%emt 0:00:08]} 60. Rd4 {[%emt 0:00:02]} Ra6 {[%emt 0:00:01]} 61. Rd8 {[%emt 0:00:01]} (61. h5 $142 g6 62. Rd5 Ra4+ 63. Nd4 gxh5+ 64. Rxh5+ Kg6 65. Rg5+ Kh7 66. Rd5) 61... Ra4+ {[%emt 0:00:04]} 62. Kf5 {[%emt 0:00:01][%cal Rd8h8]} g6+ {[%emt 0:00:06]} 63. Ke5 {[%emt 0:00:01]} Kh5 {[%emt 0:00:05]} 64. Rd4 {[%emt 0:00:03]} Ra5+ {[%emt 0:00:04]} 65. Kf4 {[%emt 0:00:01]} Kh6 {[%emt 0:00:01]} 66. Kg4 {[%emt 0:00:02]} Ra6 {[%emt 0:00:01]} 67. h5 {[%emt 0:00:05]} gxh5+ {[%emt 0:00:01]} 68. Kh4 {[%emt 0:00:01]} Rg6 {[%emt 0:00:05]} 69. Ne5 {[%emt 0:00:05]} Rg2 {[%emt 0:00:05]} 70. Rd6+ {[%emt 0:00:06]} Kh7 {[%emt 0:00:01]} 71. Nf3 {[%emt 0:00:01]} Rf2 {[%emt 0:00:04]} 72. Ng5+ {[%emt 0:00:02]} Kg7 {[%emt 0:00:09]} 73. h3 {[%emt 0:00:01] Weighted Error Value: White=0.14 (very precise) /Black=0.39} 1-0

[Event "FTX Crypto Cup MCCT 2022"]
[Site "Miami"]
[Date "2022.08.11"]
[Round "3.1"]
[White "Aronian, Levon"]
[Black "Carlsen, Magnus"]
[Result "0-1"]
[ECO "A46"]
[WhiteElo "2775"]
[BlackElo "2864"]
[Annotator "TA"]
[PlyCount "136"]
[EventDate "2022.08.10"]
[EventType "tourn"]
[EventCountry "USA"]
[SourceTitle "playchess.com"]
[Source "ChessBase"]
[SourceQuality "1"]
[TimeControl "900+10"]

{[%evp 9,136,30,28,27,25,20,39,8,23,9,6,0,12,16,14,-10,-10,-19,-9,-18,-13,-22,0,-22,0,0,0,0,-20,-15,0,-12,-11,-17,-4,-34,-25,-23,-14,-25,-26,-17,0,0,-8,-9,0,0,0,0,0,0,61,18,24,-82,-82,-79,-76,-104,-104,-104,-104,-101,-104,-137,-104,-352,-345,-345,-345,-391,-389,-387,-370,-394,-392,-485,-408,-444,-439,-437,-430,-417,-393,-382,-380,-497,-491,-472,-463,-463,-463,-463,-463,-616,-616,-539,-466,-598,-572,-4129,-599,-682,-680,-4137,-4137,-1895,-1150,-1455,-1443,-1056,-1047,-29965,-29967,-29967,-29968,-29968,-29969,-29968,-29968,-29975,-29975,-29972,-29972,-29970,-29971,-29992,-29993]} 1. d4 {[%emt 0:00:00]} e6 {[%emt 0:00:00]} 2. Nf3 {[%emt 0:00:25]} Nf6 {[%emt 0:00:04]} 3. Bf4 {[%emt 0:00:02]} Be7 {[%emt 0:00:27]} (3... b6 4. e3 Bb7 5. Bd3 Be7 6. h3 c5 7. c3 cxd4 8. exd4 O-O 9. O-O d6 10. Re1 Nbd7 11. a4 a6 12. Bg3 Re8 13. Na3 Bf8 14. Nc4 Qc7 {1-0 (68) Aronian,L (2781)-Carlsen,M (2847) chess24.com INT 2021}) 4. h3 {[%emt 0:00:09]} b5 {[%emt 0:00:25]} 5. e3 {[%emt 0:00:38]} a6 {[%emt 0:00:22]} 6. Nbd2 {[%emt 0:00:16] A46: 1 d4 Nf6 2 Nf3 e6: Torre, London and Colle Systems.} Bb7 {[%emt 0:00:10]} 7. Bd3 {[%emt 0:00:02]} c5 {[%emt 0:00:15]} 8. c3 {[%emt 0:00:03] [#] White is slightly better.} Nc6 $146 {[%emt 0:01:28]} ({Predecessor:} 8... d6 9. O-O Nbd7 10. e4 Qb6 11. Qe2 h6 12. Be3 O-O 13. c4 bxc4 14. Nxc4 Qc7 {1-0 (34) Sprotte,N (2210)-Biro,S (2290) Balatonbereny 1997}) 9. e4 {[%emt 0:00:23]} d6 {[%emt 0:00:15][%cal Bd7d6,Bd6c5,Bc5c4][%mdl 32]} 10. Be3 {[%emt 0:00:32]} O-O {[%emt 0:00:07]} 11. O-O {[%emt 0:00:02]} Rc8 {[%emt 0:00:24]} 12. dxc5 {[%emt 0:01:44]} dxc5 {[%emt 0:00:04]} 13. Qe2 {[%emt 0:00:01]} Qc7 {[%emt 0:00:36]} 14. a4 {[%emt 0:00:15]} c4 {[%emt 0:00:03]} 15. Bc2 {[%emt 0:00:01]} Rfd8 {[%emt 0:01:16]} 16. Rfd1 {[%emt 0:00:17]} h6 {[%emt 0:00:21]} 17. axb5 {[%emt 0:01:22]} axb5 {[%emt 0:00:02]} 18. b3 {[%emt 0:00:01]} cxb3 {[%emt 0:03:08]} 19. Bxb3 {[%emt 0:00:02]} b4 {[%emt 0:00:59]} 20. cxb4 {[%emt 0:00:03]} Nxb4 {[%emt 0:00:03]} 21. Nd4 {[%emt 0:00:16][%cal Od4e6]} Qe5 {[%emt 0:01:43]} 22. f4 {[%emt 0:01:13]} (22. Ra7 $5 {[%cal Ra7b7]} Qb8 23. Nxe6 $1 fxe6 24. Bxe6+ Kh8 25. Bxc8 Qxc8 26. Qb5 $11) 22... Qb8 {[%emt 0:00:02]} 23. Nxe6 $1 {[%emt 0:03:53]} fxe6 {[%emt 0:00:02]} 24. Bxe6+ {[%emt 0:00:00]} Kh8 {[%emt 0:00:00] aiming for ...Rc2.} 25. Bxc8 {[%emt 0:00:01]} Rxc8 {[%emt 0:00:02]} 26. Ra7 {[%emt 0:01:42]} Bc5 {[%emt 0:00:15]} 27. Bxc5 {[%emt 0:00:09]} Rxc5 {[%emt 0:00:00]} 28. Rda1 {[%emt 0:00:02]} Nc6 {[%emt 0:03:13] Pair of Knights!} 29. Qe3 {[%emt 0:00:27]} Rc2 {[%emt 0:00:02]} 30. R7a4 {[%emt 0:00:36]} Qd8 {[%emt 0:00:15] Against Qd3} (30... Nd8 $11) 31. Nf3 {[%emt 0:00:17] Qb3 is the strong threat.} Ne7 {[%emt 0:00:14]} 32. Qb3 {[%emt 0:00:54]} (32. Rb4 $11 Qc8 33. Rab1) 32... Qc7 $36 {[%emt 0:00:07][%mdl 2048] Black has strong initiative. Black is more active.} 33. Nd4 {[%emt 0:02:41]} Rc1+ {[%emt 0:00:50]} 34. Rxc1 {[%emt 0:00:02]} Qxc1+ {[%emt 0:00:00]} 35. Kh2 {[%emt 0:00:01] Hoping for Ne2.} Qxf4+ {[%emt 0:00:04]} 36. Qg3 {[%emt 0:00:01]} Qxe4 {[%emt 0:00:11]} 37. Rb4 {[%emt 0:00:03]} Bd5 {[%emt 0:00:17]} 38. Qf2 $2 {[%emt 0:00:26] [#] This costs White the game.} (38. Nc6 $17 {was the only chance.} Qe6 39. Nxe7 Qxe7 40. Qf4) 38... Ng6 $1 $19 {[%emt 0:01:19]} 39. Nc2 {[%emt 0:00:46]} Qe7 {[%emt 0:00:03]} 40. Rd4 {[%emt 0:00:16]} Be4 {[%emt 0:00:10]} 41. Ne1 {[%emt 0:00:12]} Qe5+ {[%emt 0:00:05]} 42. Kg1 {[%emt 0:00:11]} Nf4 {[%emt 0:00:05][%cal Oe5d4] Prevents Nd3. And now ...Qxd4! would win.} 43. Rb4 {[%emt 0:00:26]} Kh7 {[%emt 0:00:47][%cal Of4e2]} 44. Rb3 {[%emt 0:00:16]} N6d5 {[%emt 0:00:50]} 45. Nf3 {[%emt 0:00:02]} Qc7 {[%emt 0:00:04]} 46. Qb2 {[%emt 0:00:39]} Qc5+ {[%emt 0:00:11]} 47. Kh2 {[%emt 0:00:04]} Ne3 {[%emt 0:00:09]} ({Not} 47... Nd3 $2 48. Qd4 Qc7+ 49. Kh1 Qc1+ 50. Kh2 Qf4+ 51. Kg1 $19) 48. Qd4 {[%emt 0:00:16]} Nf1+ {[%emt 0:00:34]} ({But not} 48... Qc2 $2 49. Rb2 Nf1+ 50. Kg1 Ne2+ 51. Kxf1 Nxd4 52. Rxc2 Nxc2 53. Nd2 $19) 49. Kh1 {[%emt 0:00:01]} Qxd4 {[%emt 0:00:02]} ({Avoid the trap} 49... Qc2 $2 50. Rb2 Qc6 51. Rf2 $19) 50. Nxd4 {[%emt 0:00:02]} Bxg2+ {[%emt 0:00:01]} 51. Kg1 {[%emt 0:00:01]} Bxh3 {[%emt 0:00:01]} 52. Rf3 {[%emt 0:01:08]} g5 {[%emt 0:00:03][%cal Bg7g5,Bg5g4,Bg4g3][%mdl 32]} 53. Ra3 {[%emt 0:00:04]} Kg6 {[%emt 0:00:10]} 54. Nf3 {[%emt 0:00:08]} Ng3 {[%emt 0:00:48]} 55. Kh2 {[%emt 0:00:02]} Nf5 {[%emt 0:00:17] White must now prevent ...g4.} 56. Ra6+ {[%emt 0:00:18]} Kh5 {[%emt 0:00:02]} 57. Ne5 {[%emt 0:00:01]} g4 {[%emt 0:00:13]} 58. Ra3 {[%emt 0:00:22]} Bf1 {[%emt 0:00:44] ( -> ...Ne2)} 59. Ra4 {[%emt 0:00:01] [#]} g3+ $1 {[%emt 0:00:25]} 60. Kg1 {[%emt 0:00:01]} Nd3 {[%emt 0:00:01]} 61. Nd7 {[%emt 0:00:47]} Bh3 {[%emt 0:00:09] Black mates.} 62. Nf6+ {[%emt 0:00:04]} Kg6 {[%emt 0:00:03]} 63. Ne4 {[%emt 0:00:07]} Nf4 {[%emt 0:00:11]} 64. Ra6+ {[%emt 0:00:17]} Kh5 {[%emt 0:00:07]} 65. Nf6+ {[%emt 0:00:01]} Kh4 {[%emt 0:00:06]} 66. Ra4 {[%emt 0:00:02]} Kg5 {[%emt 0:00:00]} 67. Ne4+ {[%emt 0:00:03]} Kg4 {[%emt 0:00:01]} 68. Nc3 {[%emt 0:00:27]} Nh4 {[%emt 0:00:10] Weighted Error Value: White=0.61/Black=0.22 (precise)} 0-1